bitfinex-derivatives/quotes_ETHF0:USTF0_20240930
["timestamp","ask_amount","ask_price","bid_price","bid_amount"]
[1727735347137,0.38356,2607.8,2607.6,0.402]
[1727735347638,3.46415,2607.9,2607.6,0.402]
[1727735348132,3.46415,2607.9,2607.6,0.78558]
[1727735348327,3.0806,2607.9,2607.7,0.38356]
[1727735348527,0.3835,2608.2,2607.9,0.38354]
[1727735349732,3.2078,2608.4,2607.8,3.2078]
[1727735349935,0.38349,2608.3,2607.9,0.38354]
[1727735350126,0.38349,2608.3,2607.9,0.3814]
[1727735350326,0.38349,2608.3,2607.9,0.76493]
[1727735350526,0.38349,2608.3,2608.0,0.38353]
[1727735350939,0.3835,2608.2,2607.9,0.76493]
[1727735351439,5.8978,2608.4,2607.9,0.3814]
[1727735351739,0.77302,2608.1,2607.8,3.59135]
[1727735351938,0.3895,2608.1,2607.8,3.2078]
[1727735352139,0.3895,2608.1,2607.5,1.00136645]
[1727735352140,3.0698,2608.0,2607.5,4.20916645]
[1727735352444,0.38359,2607.6,2607.5,3.2078]
[1727735352940,0.78409,2607.6,2607.5,3.2078]
[1727735353735,4.61929,2607.6,2607.5,3.2078]
[1727735354039,0.38363,2607.4,2607.1,3.2078]
[1727735354235,2.69,2607.4,2607.1,3.2078]
[1727735354740,0.3798,2607.5,2607.2,0.38364]
[1727735354932,0.3798,2607.5,2607.1,3.59145]
[1727735355134,0.7634,2607.5,2607.1,3.59145]
[1727735356534,0.3798,2607.5,2607.1,3.59145]
[1727735356744,0.76341,2607.5,2607.1,3.2078]
[1727735357241,2.69,2607.4,2607.1,3.2078]
[1727735357426,2.69,2607.4,2606.9,0.38368]
[1727735357629,2.69,2607.4,2606.9,1.00136645]
[1727735357833,3.07362,2607.4,2607.0,0.38367]
[1727735358734,3.07362,2607.4,2606.8,5.34966645]
[1727735358735,2.69,2607.4,2606.8,5.34966645]
[1727735359036,2.69,2607.2,2606.8,4.3486]
[1727735359338,3.5876,2607.5,2606.8,4.3486]
[1727735359339,2.69,2606.9,2606.8,3.9649]
[1727735359546,2.69,2606.9,2606.8,4.3486]
[1727735361241,0.4032,2607.0,2606.8,4.3486]
[1727735361844,3.0571,2607.1,2606.8,3.9649]
[1727735362147,3.0571,2607.1,2606.8,4.34859]
[1727735362148,0.3671,2607.1,2606.8,4.34859]
[1727735363651,0.75076,2607.1,2606.8,4.34859]
[1727735363845,0.3671,2607.1,2606.8,4.3486]
[1727735364433,0.75076,2607.1,2606.8,4.3486]
[1727735365439,0.3671,2607.1,2606.8,4.34859]
[1727735365643,0.75076,2607.1,2606.8,4.34859]
[1727735367345,0.75076,2607.1,2606.6,0.3963]
[1727735367346,0.38368,2607.0,2606.6,0.78002]
[1727735367540,3.0737,2606.9,2606.5,0.38374]
[1727735367735,2.69,2606.7,2606.4,3.2078]
[1727735367941,2.69,2606.5,2606.1,4.3789]
[1727735368244,2.69,2606.2,2606.1,1.5549]
[1727735369040,2.69,2606.2,2606.1,5.3917]
[1727735369245,2.69,2606.2,2606.1,8.5995]
[1727735369441,2.69,2606.2,2606.1,8.2157]
[1727735369744,2.69,2606.2,2606.1,8.59951]
[1727735370241,2.69,2606.2,2606.1,4.76271]
[1727735371346,2.69,2606.2,2606.1,3.2078]
[1727735371550,2.69,2606.2,2605.8,3.2078]
[1727735371747,3.0603,2606.4,2606.2,0.38379]
[1727735372041,3.0603,2606.4,2606.1,3.2078]
[1727735372042,3.0603,2606.4,2606.3,0.38378]
[1727735372240,3.0603,2606.4,2606.1,3.2078]
[1727735372241,3.0603,2606.4,2606.2,1.58598]
[1727735375036,3.0603,2606.4,2606.2,1.2022]
[1727735376352,3.44406,2606.4,2606.2,0.8046]
[1727735376646,3.44406,2606.4,2606.2,0.4051]
[1727735377147,3.0603,2606.4,2606.2,0.4051]
[1727735377947,3.0603,2606.4,2606.2,0.78889]
[1727735378355,6.8971,2606.4,2605.6,3.2078]
[1727735378659,6.8971,2606.4,2605.7,1.1654]
[1727735378660,3.0738,2606.2,2605.7,1.1654]
[1727735378846,0.3921,2606.1,2605.8,0.38384]
[1727735379643,0.3921,2606.1,2605.9,0.38383]
[1727735379841,0.3921,2606.1,2605.7,1.1654]
[1727735380040,0.3921,2606.1,2605.8,0.38384]
[1727735380252,0.77591,2606.1,2605.9,3.2078]
[1727735380648,0.3921,2606.1,2605.9,3.2078]
[1727735380849,0.3921,2606.1,2605.9,3.59163]
[1727735381360,0.3921,2606.1,2605.9,3.2078]
[1727735381558,0.3703,2606.4,2605.9,7.0454]
[1727735381754,4.18,2607.0,2606.5,0.38374]
[1727735381755,3.9872,2606.7,2606.5,0.38374]
[1727735382052,3.9872,2606.7,2606.3,0.38377]
[1727735382053,0.38375,2606.6,2606.3,0.38377]
[1727735382256,0.38375,2606.6,2606.3,1.15007]
[1727735382555,3.9872,2606.7,2606.3,1.55097]
[1727735382556,4.37093,2606.7,2606.3,1.55097]
[1727735382850,2.69,2606.4,2606.1,3.2078]
[1727735383050,2.69,2606.4,2606.3,0.38378]
[1727735383253,2.69,2606.6,2606.4,0.38376]
[1727735384455,2.69,2606.6,2606.4,3.59156]
[1727735387547,2.69,2606.6,2606.4,3.2078]
[1727735387859,2.69,2606.6,2606.4,3.59156]
[1727735391154,3.07368,2607.0,2606.7,0.38371]
[1727735391355,2.69,2607.0,2606.8,0.7556]
[1727735391656,3.07368,2607.0,2606.8,0.7556]
[1727735394174,2.69,2607.0,2606.8,0.7556]
[1727735394368,2.69,2607.0,2606.9,0.38369]
[1727735395272,0.7659,2607.1,2606.8,0.7556]
[1727735395475,0.7659,2607.1,2606.9,0.38368]
[1727735396175,0.7659,2607.1,2606.8,1.1393]
[1727735397376,1.14956,2607.1,2606.8,1.1393]
[1727735397675,0.7659,2607.1,2606.8,0.7556]
[1727735397879,3.07369,2607.0,2606.8,0.7556]
[1727735398179,3.07368,2607.0,2606.8,0.7556]
[1727735398571,2.69,2607.0,2606.8,0.7556]
[1727735398878,0.38376,2606.4,2606.3,3.2078]
[1727735399177,3.07376,2606.5,2606.2,3.2078]
[1727735399477,3.07376,2606.5,2606.1,0.7619]
[1727735399478,0.38378,2606.3,2606.1,0.7619]
[1727735399782,1.18127,2606.4,2606.1,1.1457]
[1727735399974,1.18127,2606.4,2606.2,3.2078]
[1727735400670,1.18127,2606.4,2606.1,1.1457]
[1727735400893,0.7975,2606.4,2606.2,3.2078]
[1727735401083,1.18127,2606.4,2606.2,3.2078]
[1727735401581,0.7975,2606.4,2606.2,3.59159]
[1727735401981,0.3935,2606.4,2606.2,3.2078]
[1727735402368,0.3935,2606.4,2606.2,3.59159]
[1727735402579,0.3935,2606.4,2606.3,0.38378]
[1727735403479,3.4766,2606.7,2606.4,0.38376]
[1727735403480,3.86033,2606.7,2606.4,0.38376]
[1727735403688,4.24493,2606.7,2606.4,0.38376]
[1727735403982,3.2078,2606.8,2606.4,0.38376]
[1727735403983,0.38368,2607.0,2606.7,0.3837]
[1727735404170,0.38368,2607.0,2606.5,3.2078]
[1727735404171,3.47706,2607.1,2606.8,1.15019]
[1727735404371,0.38368,2607.0,2606.8,3.9743]
[1727735406885,2.69,2606.9,2606.8,3.9743]
[1727735407390,3.07369,2606.9,2606.8,3.2078]
[1727735407685,0.38376,2606.4,2606.2,3.2078]
[1727735407873,0.95927,2606.8,2606.2,3.2078]
[1727735407874,2.69,2606.3,2606.2,3.2078]
[1727735408078,3.07378,2606.3,2606.2,3.2078]
[1727735408584,2.69,2606.3,2606.2,3.2078]
[1727735409483,0.3922,2606.6,2606.2,3.2078]
[1727735409687,0.3702,2606.7,2606.6,0.38373]
[1727735409883,0.3702,2606.7,2606.5,3.2078]
[1727735410183,0.3702,2606.7,2606.5,3.59154]
[1727735410379,0.3702,2606.7,2606.6,0.38373]
[1727735410576,0.3922,2606.9,2606.7,0.38371]
[1727735410776,0.3922,2606.9,2606.8,0.3837]
[1727735410980,0.3899,2607.3,2606.8,3.2078]
[1727735410981,2.69,2607.2,2606.8,3.2078]
[1727735411283,0.38369,2606.9,2606.8,3.2078]
[1727735411784,0.77359,2606.9,2606.8,3.2078]
[1727735412177,5.00919,2606.9,2606.8,3.2078]
[1727735413286,4.6255,2606.9,2606.5,3.2078]
[1727735413493,2.69,2606.6,2606.5,3.2078]
[1727735416290,2.69,2606.6,2606.4,0.38376]
[1727735416595,2.69,2606.6,2606.5,3.2078]
[1727735416979,3.07373,2606.6,2606.5,3.2078]
[1727735417179,6.91053,2606.6,2606.5,3.2078]
[1727735417591,6.91053,2606.6,2606.0,1.00136645]
[1727735417592,0.38378,2606.3,2606.0,1.00136645]
[1727735417883,2.69,2606.1,2605.9,1.38519645]
[1727735418085,2.69,2606.1,2605.9,0.38383]
[1727735418287,2.69,2606.1,2605.8,4.20916645]
[1727735418489,2.69,2606.1,2605.9,0.38383]
[1727735418890,3.8843,2606.2,2605.8,4.20916645]
[1727735419093,3.4812,2606.2,2606.0,0.38381]
[1727735419685,3.0748,2606.5,2605.9,1.00136645]
[1727735419885,0.38377,2606.4,2606.0,0.78051]
[1727735420087,0.78877,2606.4,2606.0,0.78051]
[1727735420285,0.78877,2606.4,2606.1,0.3838]
[1727735420286,0.405,2606.4,2606.1,0.3838]
[1727735420591,0.405,2606.4,2606.2,0.38378]
[1727735421092,2.69,2606.5,2606.3,0.38377]
[1727735421288,2.69,2606.5,2606.2,0.38379]
[1727735422994,3.07375,2606.5,2606.1,1.14669]
[1727735423196,2.69,2606.5,2606.2,0.38379]
[1727735423394,0.38376,2606.4,2606.1,1.1467]
[1727735423594,0.3952,2606.6,2606.0,0.3967]
[1727735423595,3.07378,2606.3,2606.0,0.3967]
[1727735423893,0.369,2606.2,2606.0,0.3967]
[1727735424082,0.7472,2606.2,2606.0,0.3967]
[1727735424692,1.13099,2606.2,2605.9,0.38383]
[1727735424896,0.7472,2606.2,2605.9,0.38384]
[1727735425593,1.13099,2606.2,2605.9,0.38384]
[1727735425802,0.7472,2606.2,2606.0,0.38382]
[1727735425996,0.7472,2606.2,2605.8,4.96916645]
[1727735426202,0.7472,2606.2,2605.9,1.38519645]
[1727735426700,0.7472,2606.2,2605.9,0.38383]
[1727735427196,1.13099,2606.2,2606.0,3.2078]
[1727735428300,1.13099,2606.2,2605.8,2.14520645]
[1727735428301,0.38381,2606.1,2605.8,2.14520645]
[1727735428600,0.7472,2606.2,2605.9,0.38383]
[1727735428601,1.131,2606.2,2605.9,0.38383]
[1727735429307,1.131,2606.2,2605.8,1.14384]
[1727735429602,0.38381,2606.1,2605.8,1.14384]
[1727735429987,0.7472,2606.2,2605.8,0.76]
[1727735430195,1.131,2606.2,2606.0,3.2078]
[1727735430599,0.7472,2606.2,2606.0,3.59162]
[1727735430801,0.7472,2606.2,2606.0,3.2078]
[1727735431197,1.131,2606.2,2606.0,3.2078]
[1727735432497,0.38381,2606.1,2606.0,3.2078]
[1727735433094,0.7472,2606.2,2606.0,3.2078]
[1727735433300,0.38381,2606.1,2606.0,3.2078]
[1727735433506,1.131,2606.2,2606.0,3.2078]
[1727735433712,0.7472,2606.2,2606.0,3.2078]
[1727735434304,1.13099,2606.2,2606.0,3.2078]
[1727735434501,0.38381,2606.1,2606.0,3.2078]
[1727735434799,0.7472,2606.2,2606.0,3.2078]
[1727735435001,1.131,2606.2,2606.0,3.2078]
[1727735435505,0.7472,2606.2,2606.0,3.2078]
[1727735435806,1.13099,2606.2,2606.0,3.2078]
[1727735436206,1.131,2606.2,2606.0,3.2078]
[1727735436399,0.38381,2606.1,2606.0,3.2078]
[1727735436598,0.7472,2606.2,2606.0,3.2078]
[1727735436798,1.131,2606.2,2606.0,3.2078]
[1727735437506,0.38381,2606.1,2606.0,3.2078]
[1727735437700,1.131,2606.2,2606.0,3.2078]
[1727735438092,0.7472,2606.2,2606.0,3.59162]
[1727735438297,0.38381,2606.1,2606.0,3.2078]
[1727735438499,1.131,2606.2,2606.0,3.2078]
[1727735438901,0.95936,2606.6,2606.0,3.2078]
[1727735439097,0.95936,2606.6,2606.3,3.2078]
[1727735439098,1.15344,2606.6,2606.3,3.2078]
[1727735439301,0.38375,2606.5,2606.4,0.7714]
[1727735439607,1.15344,2606.6,2606.4,0.7714]
[1727735441101,1.15343,2606.6,2606.4,1.15516]
[1727735441412,1.15343,2606.6,2606.4,0.7714]
[1727735443805,0.7697,2606.6,2606.4,0.7714]
[1727735444010,1.15343,2606.6,2606.4,0.7714]
[1727735444195,0.7697,2606.6,2606.4,0.7714]
[1727735444401,0.7697,2606.6,2606.4,1.15515]
[1727735444607,1.15343,2606.6,2606.4,0.7714]
[1727735445903,2.69,2606.7,2606.4,0.7714]
[1727735446113,4.2512,2606.9,2606.6,0.38373]
[1727735446303,4.2512,2606.9,2606.6,3.59153]
[1727735446506,3.8675,2606.9,2606.6,3.2078]
[1727735446704,0.38371,2606.8,2606.6,3.2078]
[1727735448002,2.69,2606.7,2606.6,3.2078]
[1727735448210,2.69,2606.7,2606.2,3.9972]
[1727735448407,2.69,2606.7,2606.3,0.3745]
[1727735448607,0.38374,2606.6,2606.3,0.75827]
[1727735448808,0.38375,2606.5,2606.3,0.3745]
[1727735449009,0.78965,2606.5,2606.3,0.3745]
[1727735449306,0.4059,2606.5,2606.3,0.75828]
[1727735449507,2.69,2606.7,2606.3,0.3745]
[1727735449705,2.69,2606.7,2606.5,3.2078]
[1727735449906,2.69,2606.7,2606.5,3.59154]
[1727735450308,3.07372,2606.7,2606.5,3.2078]
[1727735450508,0.3752,2606.6,2606.5,3.2078]
[1727735451905,0.3752,2606.6,2606.5,3.59155]
[1727735452308,2.69,2606.9,2606.5,3.2078]
[1727735452510,6.273,2607.1,2606.6,0.798]
[1727735452821,6.273,2607.1,2606.8,0.3837]
[1727735453021,6.65666,2607.1,2606.8,0.3837]
[1727735453220,6.273,2607.1,2606.9,0.77528]
[1727735453415,3.44887,2607.1,2606.9,0.3916]
[1727735453613,3.0652,2607.1,2606.9,0.3916]
[1727735454121,0.38367,2607.0,2606.9,0.3916]
[1727735454518,0.38367,2607.0,2606.8,3.2078]
[1727735454712,2.69,2606.9,2606.8,3.2078]
[1727735455013,3.07369,2606.9,2606.8,3.2078]
[1727735457714,0.3837,2606.8,2606.6,0.3932]
[1727735457914,0.4006,2606.8,2606.6,0.3932]
[1727735458227,3.45762,2606.7,2606.4,0.38375]
[1727735458413,3.82972,2606.7,2606.4,0.38375]
[1727735458617,3.82972,2606.7,2606.4,0.38376]
[1727735459025,3.82972,2606.7,2606.3,3.9535]
[1727735459026,3.82972,2606.7,2606.3,4.33727]
[1727735459217,3.446,2606.7,2606.5,0.38374]
[1727735459523,3.82972,2606.7,2606.4,0.38376]
[1727735460422,3.07375,2606.5,2606.3,3.9535]
[1727735460628,3.446,2606.7,2606.3,3.9535]
[1727735460925,0.38369,2607.0,2606.7,0.38371]
[1727735461115,0.75579,2607.0,2606.7,0.38371]
[1727735461724,0.38369,2606.9,2606.8,0.3741]
[1727735462825,0.75578,2607.0,2606.8,0.3741]
[1727735463214,0.75578,2607.0,2606.8,0.7586]
[1727735463418,0.3721,2607.0,2606.8,1.1423]
[1727735463621,0.3721,2607.0,2606.8,0.7586]
[1727735463816,0.3721,2607.0,2606.9,0.38369]
[1727735464019,2.69,2607.3,2606.9,3.59148]
[1727735464225,0.38365,2607.2,2606.9,3.59149]
[1727735464422,2.69,2607.1,2606.9,3.59149]
[1727735465936,0.3824,2607.4,2606.9,7.0438]
[1727735466228,4.18,2607.8,2607.2,3.2078]
[1727735466229,3.4625,2607.7,2607.2,3.2078]
[1727735466428,3.0869,2607.7,2607.5,0.3836]
[1727735466824,3.0869,2607.7,2607.5,3.5914]
[1727735467328,3.0869,2607.7,2607.3,1.2122]
[1727735467527,3.0869,2607.7,2607.4,0.38361]
[1727735471434,3.47047,2607.7,2607.4,0.38361]
[1727735472135,3.47047,2607.7,2607.3,1.59582]
[1727735472553,3.0869,2607.7,2607.4,3.2078]
[1727735472753,3.0736,2607.5,2607.4,3.2078]
[1727735473047,0.38363,2607.3,2607.1,3.2078]
[1727735473246,3.84904,2607.2,2607.1,3.2078]
[1727735473440,3.84904,2607.2,2606.8,1.5545]
[1727735473441,3.4654,2607.2,2606.8,4.7623]
[1727735473647,3.4654,2607.2,2606.8,4.3786]
[1727735473844,3.84904,2607.2,2606.9,0.38368]
[1727735474053,3.4654,2607.2,2606.8,4.3786]
[1727735474252,3.4654,2607.2,2606.9,0.38368]
[1727735474456,3.4654,2607.2,2607.1,3.2078]
[1727735474753,3.07356,2607.8,2607.4,0.3836]
[1727735474961,4.22716,2607.8,2607.5,0.3664]
[1727735475255,4.22716,2607.8,2607.5,1.5401]
[1727735475453,4.22716,2607.8,2607.5,1.1565]
[1727735475454,3.8436,2607.8,2607.5,1.1565]
[1727735475642,3.4611,2607.8,2607.5,1.54009]
[1727735475844,0.38358,2607.7,2607.5,1.1565]
[1727735476350,3.4611,2607.8,2607.5,1.1565]
[1727735476547,3.84466,2607.8,2607.5,1.54009]
[1727735476745,3.4611,2607.8,2607.6,0.38358]
[1727735477042,3.4611,2607.8,2607.5,1.1565]
[1727735477352,2.69,2607.6,2607.1,3.2078]
[1727735477555,2.69,2607.4,2607.2,1.15823]
[1727735477944,2.69,2607.4,2607.1,3.2078]
[1727735477945,0.3965,2607.4,2607.1,3.2078]
[1727735478145,0.77434,2607.3,2607.1,3.2078]
[1727735478656,0.3907,2607.3,2607.1,3.2078]
[1727735478850,0.77434,2607.3,2607.1,3.2078]
[1727735480557,0.3907,2607.3,2607.1,3.2078]
[1727735480758,0.77433,2607.3,2607.1,3.2078]
[1727735481555,0.3907,2607.3,2607.2,0.38364]
[1727735481851,0.3907,2607.3,2607.1,3.59145]
[1727735482153,3.47012,2607.4,2607.1,3.59145]
[1727735482457,0.4024,2607.7,2607.2,3.8352]
[1727735482656,0.38361,2607.4,2607.3,0.374]
[1727735483445,2.69,2607.4,2607.1,3.5959]
[1727735483649,2.69,2607.4,2607.0,0.3748]
[1727735483650,0.38365,2607.2,2607.0,0.3748]
[1727735483858,0.38364,2607.2,2607.0,0.3748]
[1727735484046,0.78604,2607.2,2607.0,0.3748]
[1727735484252,0.4024,2607.2,2607.0,0.75847]
[1727735484951,0.4024,2607.2,2607.0,0.3748]
[1727735485152,0.78605,2607.2,2607.0,0.3748]
[1727735485356,3.47605,2607.2,2607.0,0.3748]
[1727735486456,3.0924,2607.2,2607.0,0.3748]
[1727735486760,3.0924,2607.2,2607.1,0.38366]
[1727735486961,0.4024,2607.2,2607.1,3.59146]
[1727735487154,0.3755,2607.3,2607.1,3.2078]
[1727735487354,0.3755,2607.3,2607.1,3.59145]
[1727735487559,0.3755,2607.3,2607.1,3.2078]
[1727735487756,0.3755,2607.3,2607.2,0.38364]
[1727735487962,0.3755,2607.3,2607.2,0.76864]
[1727735491550,0.3755,2607.3,2607.2,0.385]
[1727735492063,0.3755,2607.3,2607.2,0.76864]
[1727735493459,0.3755,2607.3,2607.2,0.385]
[1727735494060,0.3755,2607.3,2607.2,0.76864]
[1727735494572,0.3755,2607.3,2607.2,0.385]
[1727735495266,0.75913,2607.3,2607.1,3.2078]
[1727735495655,0.3755,2607.3,2607.1,3.59146]
[1727735497370,0.3755,2607.3,2607.1,3.2078]
[1727735497561,0.75914,2607.3,2607.1,3.2078]
[1727735497758,0.3956,2607.2,2607.1,3.2078]
[1727735497959,0.3755,2607.3,2607.1,3.2078]
[1727735498165,0.38359,2607.6,2607.3,0.38362]
[1727735498365,0.38359,2607.6,2607.4,0.8035]
[1727735498571,0.7921,2607.7,2607.4,1.1841]
[1727735498765,0.3836,2607.5,2607.4,1.1841]
[1727735499766,2.69,2607.6,2607.2,1.0056165]
[1727735499961,0.38363,2607.3,2607.2,1.0056165]
[1727735500373,0.4001,2607.3,2607.1,4.2134165]
[1727735500567,0.38366,2607.1,2607.0,1.00616455]
[1727735500768,7.87454,2607.2,2606.8,1.00616455]
[1727735500976,0.3837,2606.8,2606.7,1.00616455]
[1727735501268,0.38372,2606.7,2606.6,3.2078]
[1727735501476,3.4795,2606.7,2606.3,0.3806]
[1727735501662,2.69,2606.4,2606.3,0.3806]
[1727735502061,2.69,2606.4,2606.2,0.7819]
[1727735502365,0.389,2606.3,2606.2,3.9897]
[1727735502565,0.389,2606.3,2606.2,4.37349]
[1727735502765,0.389,2606.3,2606.2,0.4042]
[1727735503366,0.389,2606.3,2606.2,3.612]
[1727735503676,0.389,2606.3,2606.2,0.78799]
[1727735503976,0.389,2606.3,2606.2,0.4042]
[1727735504869,0.389,2606.3,2606.2,3.99579]
[1727735505074,0.389,2606.3,2606.2,0.78799]
[1727735505267,0.389,2606.3,2606.2,3.99579]
[1727735506772,0.389,2606.3,2606.2,0.4042]
[1727735507071,0.389,2606.3,2606.2,3.99579]
[1727735508470,0.389,2606.3,2606.2,0.78799]
[1727735508865,0.389,2606.3,2605.9,4.59166455]
[1727735509086,3.0649,2606.2,2606.1,0.38381]
[1727735509579,0.3749,2606.2,2606.0,0.38381]
[1727735509777,0.3749,2606.2,2606.0,0.38382]
[1727735510280,0.3749,2606.2,2605.9,3.96853]
[1727735510975,0.3749,2606.2,2605.9,3.5847]
[1727735511175,0.3749,2606.2,2606.0,0.38381]
[1727735511371,0.389,2606.3,2606.1,0.38381]
[1727735511571,0.389,2606.3,2605.9,3.5847]
[1727735511776,0.389,2606.3,2606.2,0.38379]
[1727735511973,1.25,2607.1,2606.2,0.38379]
[1727735511974,3.07371,2606.8,2606.5,0.38375]
[1727735512170,0.3937,2606.7,2606.5,0.38375]
[1727735512571,0.3937,2606.7,2606.6,0.38373]
[1727735513176,3.0765,2606.8,2606.4,0.3917]
[1727735513883,4.18,2607.5,2606.9,0.38368]
[1727735513884,3.07363,2607.4,2606.9,0.38368]
[1727735514072,0.38365,2607.2,2606.9,3.2078]
[1727735514383,1.15044,2607.3,2606.9,3.59149]
[1727735515874,0.7668,2607.3,2607.0,0.38367]
[1727735516070,0.7668,2607.3,2607.0,1.16567]
[1727735517679,0.7668,2607.3,2607.0,1.56137]
[1727735519381,0.7668,2607.3,2607.0,1.1777]
[1727735519884,0.7668,2607.3,2607.0,1.56136]
[1727735520486,2.69,2607.6,2607.2,3.2078]
[1727735520777,2.69,2607.6,2607.2,3.59144]
[1727735520778,4.24539,2607.6,2607.2,3.59144]
[1727735522284,2.69,2607.4,2607.2,3.2078]
[1727735522474,2.69,2607.3,2606.8,3.2078]
[1727735522680,0.4031,2607.2,2606.8,3.2078]
[1727735522983,0.3931,2607.1,2606.8,7.95576391]
[1727735523190,0.3931,2607.1,2606.8,3.5915]
[1727735524281,0.3931,2607.1,2606.8,3.2078]
[1727735524489,1.15817,2607.1,2606.8,3.2078]
[1727735525079,1.15817,2607.1,2606.8,3.59149]
[1727735525080,0.7745,2607.1,2606.8,3.59149]
[1727735525484,0.7745,2607.1,2606.8,3.2078]
[1727735525686,0.3931,2607.1,2606.9,0.38368]
[1727735525892,6.87,2607.8,2607.2,0.38363]
[1727735526083,6.87,2607.8,2607.3,0.7714]
[1727735526084,0.397,2607.6,2607.3,0.7714]
[1727735526283,0.38361,2607.5,2607.2,3.2078]
[1727735526684,3.087,2607.6,2607.2,3.2078]
[1727735526883,3.47059,2607.6,2607.2,3.59144]
[1727735527187,0.3836,2607.5,2607.2,3.59144]
[1727735527385,0.38362,2607.4,2607.2,3.2078]
[1727735527587,0.38361,2607.5,2607.2,3.5899]
[1727735527789,2.69,2607.4,2607.2,3.2078]
[1727735528098,2.69,2607.4,2607.0,0.7714]
[1727735528390,0.38364,2607.3,2607.0,0.7714]
[1727735528581,0.8034,2607.2,2607.0,0.3997]
[1727735528778,1.2004,2607.2,2607.0,0.3997]
[1727735528978,1.2004,2607.2,2606.8,0.7495]
[1727735528979,0.38366,2607.1,2606.8,0.7495]
[1727735529681,0.38366,2607.1,2606.8,0.3658]
[1727735530081,0.38366,2607.1,2606.8,0.7495]
[1727735530990,0.38367,2607.1,2606.8,0.3658]
[1727735531383,3.8904,2607.2,2606.8,0.3658]
[1727735531691,0.38367,2607.1,2606.8,0.3658]
[1727735532285,0.38367,2607.1,2606.8,0.7495]
[1727735533396,0.38367,2607.1,2606.8,0.3658]
[1727735533588,0.38367,2607.1,2606.8,0.7495]
[1727735534587,0.397,2607.2,2606.9,3.2078]
[1727735534782,0.397,2607.2,2607.0,0.38367]
[1727735535089,0.397,2607.2,2607.1,0.38366]
[1727735535487,2.69,2607.4,2607.1,0.38366]
[1727735535684,2.69,2607.4,2606.9,3.2078]
[1727735535685,3.093,2607.4,2607.2,0.76944]
[1727735535885,0.403,2607.4,2607.3,0.38363]
[1727735536086,0.403,2607.4,2607.3,1.15563]
[1727735536596,6.67906,2607.8,2607.3,0.772]
[1727735536897,0.403,2607.8,2607.3,3.462]
[1727735537082,0.403,2607.8,2607.5,3.2078]
[1727735537283,0.403,2607.8,2607.5,3.59139]
[1727735537887,0.78656,2607.8,2607.5,3.59139]
[1727735538095,0.403,2607.8,2607.6,0.38358]
[1727735538287,0.403,2607.8,2607.5,3.2078]
[1727735538496,0.403,2607.8,2607.5,3.59139]
[1727735539397,0.403,2607.8,2607.6,0.38358]
[1727735539791,4.5826,2608.3,2607.7,0.368]
[1727735539792,3.0926,2608.3,2607.7,0.368]
[1727735539986,4.18,2608.5,2607.8,5.8978]
[1727735540296,0.76916,2608.5,2608.1,3.2078]
[1727735540492,0.76916,2608.5,2608.1,3.59131]
[1727735541001,0.76916,2608.5,2608.1,3.2078]
[1727735541195,0.3857,2608.5,2608.1,3.2078]
[1727735541589,0.76916,2608.5,2608.1,3.2078]
[1727735543299,0.38347,2608.4,2608.1,3.2078]
[1727735543601,0.3857,2608.5,2608.1,3.2078]
[1727735543904,0.76916,2608.5,2608.1,3.2078]
[1727735545205,0.38347,2608.4,2608.1,3.2078]
[1727735545608,3.07347,2608.4,2608.1,3.2078]
[1727735546100,0.3835,2608.2,2607.8,3.2078]
[1727735546302,0.78861,2608.1,2607.8,3.2078]
[1727735546505,0.4051,2608.1,2607.8,3.2078]
[1727735547400,0.3995,2608.0,2607.7,1.13876]
[1727735547703,0.3995,2608.0,2607.8,0.38355]
[1727735548002,0.3995,2608.0,2607.8,3.59135]
[1727735548206,0.3995,2608.0,2607.8,3.2078]
[1727735548901,0.3995,2608.0,2607.8,3.59135]
[1727735549505,0.3995,2608.0,2607.8,3.2078]
[1727735550199,0.3995,2608.0,2607.8,3.59136]
[1727735550810,0.3995,2608.0,2607.8,3.2078]
[1727735551204,0.3995,2608.0,2607.4,0.3677]
[1727735551205,0.38356,2607.9,2607.5,3.5914]
[1727735551399,3.47303,2608.0,2607.5,3.9486]
[1727735551695,3.47303,2608.0,2607.6,0.38358]
[1727735551912,0.3995,2608.0,2607.8,0.38355]
[1727735552102,0.3995,2608.0,2607.9,0.3706]
[1727735552303,0.78862,2608.1,2607.9,0.3706]
[1727735552505,0.3665,2608.5,2608.1,0.38351]
[1727735552506,0.74996,2608.5,2608.1,0.38351]
[1727735552708,0.74996,2608.5,2608.1,3.2078]
[1727735552709,0.7435,2608.5,2608.1,3.2078]
[1727735552914,1.12696,2608.5,2608.1,3.2078]
[1727735553303,1.12696,2608.5,2608.2,0.3835]
[1727735553501,0.7435,2608.5,2608.2,0.3835]
[1727735554003,0.7435,2608.5,2608.1,3.2078]
[1727735554004,1.12695,2608.5,2608.1,3.5913]
[1727735555607,1.12695,2608.5,2608.3,0.38348]
[1727735555608,0.377,2608.5,2608.3,0.38348]
[1727735555812,0.377,2608.5,2608.1,3.2078]
[1727735556007,0.377,2608.5,2608.2,0.38349]
[1727735556406,0.377,2608.5,2608.3,0.4011]